Workbook

Sheet Foglio3
A1: CLASSIFICA ASSOLUTA SOCIETA' XXXVI CIRCUITO VOLKL MASTER OLD STARS 2023
B3: TEMU' | E3: BORNO | H3: BORNO | K3: VALGEROLA | N3: VALGEROLA | Q3: APRICA | T3: APRICA | W3: LIZZOLA | Z3: LIZZOLA
B4: F | C4: M | D4: Totale | E4: F | F4: M | G4: Totale | H4: F | I4: M | J4: Totale | K4: F | L4: M | M4: Totale | N4: F | O4: M | P4: Totale | Q4: F | R4: M | S4: Totale | T4: F | U4: M | V4: Totale | W4: F | X4: M | Y4: Totale | Z4: F | AA4: M | AB4: Totale
A5: G.S.A. Marinelli | D5: =B5+C5 -> 0 | G5: =E5+F5 -> 0 | J5: =H5+I5 -> 0 | M5: =K5+L5 -> 0 | P5: =N5+O5 -> 0 | R5: 1 | S5: =Q5+R5 -> 1 | U5: 45 | V5: =T5+U5 -> 45 | Y5: =W5+X5 -> 0 | AB5: =Z5+AA5 -> 0
A6: S.C. Cernobbio | B6: 780 | C6: 240 | D6: 1020 | E6: 230 | F6: 719 | G6: =E6+F6 -> 949 | H6: 230 | I6: 721 | J6: =H6+I6 -> 951 | K6: 600 | L6: 1450 | M6: 2050 | N6: 600 | O6: 1501 | P6: 2101 | Q6: 710 | R6: 1178 | S6: =Q6+R6 -> 1888 | T6: 690 | U6: 1144 | V6: =T6+U6 -> 1834 | W6: 260 | X6: 603 | Y6: =W6+X6 -> 863 | Z6: 260 | AA6: 621 | AB6: =Z6+AA6 -> 881
A7: S.C. La Recastello | B7: 666 | C7: 420 | D7: 1086 | E7: 541 | F7: 542 | G7: 1083 | H7: 640 | I7: 488 | J7: =H7+I7 -> 1128 | K7: 405 | L7: 480 | M7: =K7+L7 -> 885 | N7: 395 | O7: 457 | P7: =N7+O7 -> 852 | Q7: 380 | R7: 723 | S7: 1103 | T7: 380 | U7: 724 | V7: 1104 | W7: 360 | X7: 883 | Y7: 1243 | Z7: 360 | AA7: 850 | AB7: 1210
A8: S.C. Ski Mountain | B8: =100+100+1 -> 201 | C8: 1258 | D8: 1459 | E8: 250 | F8: 1612 | G8: 1862 | H8: 181 | I8: 1236 | J8: 1417 | K8: 330 | L8: 1473 | M8: 1803 | N8: 340 | O8: 1418 | P8: 1758 | Q8: 340 | R8: 1737 | S8: 2077 | T8: 360 | U8: 1650 | V8: 2010 | W8: 280 | X8: 1215 | Y8: 1495 | Z8: 280 | AA8: 1201 | AB8: 1481
A9: S.C. GEM Monza | D9: 0 | G9: 0 | J9: 0 | L9: 46 | M9: 46 | O9: 48 | P9: 48
A11: SOCIETA' | B11: APRICA | E11: APRICA | H11: TEMU' | K11: CHIESA | N11: CHIESA | Q11: CHIESA | T11: TONALE | W11: TONALE | Z11: Femminile | AB11: Maschile
B12: F | C12: M | D12: Totale | E12: F | F12: M | G12: Totale | H12: F | I12: M | J12: Totale | K12: F | L12: M | M12: Totale | N12: F | O12: M | P12: Totale | Q12: F | R12: M | S12: Totale | T12: F | U12: M | V12: Totale | W12: F | X12: M | Y12: Totale
A13: G.S.A. Marinelli | D13: =B13+C13 -> 0 | G13: =E13+F13 -> 0 | J13: =H13+I13 -> 0 | M13: =K13+L13 -> 0 | P13: =N13+O13 -> 0 | S13: =SUM(Q13:R13) -> 0 | V13: =SUM(T13:U13) -> 0 | Y13: =SUM(W13:X13) -> 0 | Z13: =B5+E5+H5+K5+N5+Q5+T5+W5+Z5+B13+E13+H13+K13+N13+Q13+T13+W13 -> 0 | AB13: =C5+F5+I5+L5+O5+R5+U5+X5+AA5+C13+F13+I13+L13+O13+R13+U13+X13 -> 46
A14: S.C. Cernobbio | B14: 420 | C14: 835 | D14: =B14+C14 -> 1255 | E14: 400 | F14: 835 | G14: =E14+F14 -> 1235 | H14: 240 | I14: 501 | J14: =H14+I14 -> 741 | K14: 480 | L14: 864 | M14: =K14+L14 -> 1344 | N14: 530 | O14: 1152 | P14: =N14+O14 -> 1682 | Q14: 550 | R14: 1223 | S14: =SUM(Q14:R14) -> 1773 | T14: 400 | U14: 878 | V14: =SUM(T14:U14) -> 1278 | W14: 400 | X14: 749 | Y14: =SUM(W14:X14) -> 1149 | Z14: =B6+E6+H6+K6+N6+Q6+T6+W6+Z6+B14+E14+H14+K14+N14+Q14+T14+W14 -> 7780 | AB14: =C6+F6+I6+L6+O6+R6+U6+X6+AA6+C14+F14+I14+L14+O14+R14+U14+X14 -> 15214
A15: S.C. La Recastello | B15: 530 | C15: 675 | D15: 1205 | E15: 520 | F15: 666 | G15: 1186 | H15: 260 | I15: 551 | J15: 811 | K15: 370 | L15: 518 | M15: 888 | N15: 355 | O15: 650 | P15: 1005 | Q15: 315 | R15: 672 | S15: 987 | T15: 455 | U15: 778 | V15: 1233 | W15: 455 | X15: 803 | Y15: 1258 | Z15: =B7+E7+H7+K7+N7+Q7+T7+W7+Z7+B15+E15+H15+K15+N15+Q15+T15+W15 -> 7387 | AB15: =C7+F7+I7+L7+O7+R7+U7+X7+AA7+C15+F15+I15+L15+O15+R15+U15+X15 -> 10880
A16: S.C. Ski Mountain | B16: 330 | C16: 1401 | D16: 1731 | E16: 360 | F16: 1508 | G16: 1868 | H16: 380 | I16: 1035 | J16: 1415 | K16: 260 | L16: 860 | M16: 1120 | N16: 260 | O16: 1463 | P16: 1723 | Q16: 280 | R16: 1383 | S16: 1663 | T16: 360 | U16: 1531 | V16: 1891 | W16: 360 | X16: 1642 | Y16: 2002 | Z16: =B8+E8+H8+K8+N8+Q8+T8+W8+Z8+B16+E16+H16+K16+N16+Q16+T16+W16 -> 5152 | AB16: =C8+F8+I8+L8+O8+R8+U8+X8+AA8+C16+F16+I16+L16+O16+R16+U16+X16 -> 23623
A17: S.C. GEM Monza | Z17: 0 | AB17: =C9+F9+I9+L9+O9+R9+U9+X9+AA9+C17+F17+I17+L17+O17+R17+U17+X17 -> 94
A20: CLASSIFICA SOCIETA' ASSOLUTA FEMMINILE 2023
A22: Classifica Assoluta
A23: Femminile
B24: TEMU' | C24: BORNO | D24: BORNO | E24: VALGEROLA | F24: VALGEROLA | G24: APRICA | H24: APRICA | I24: LIZZOLA | J24: LIZZOLA | K24: APRICA | L24: APRICA | M24: TEMU' | N24: CHIESA | O24: CHIESA | P24: CHIESA | Q24: TONALE | R24: TONALE | S24: TOT | T24: Posiz.
A25: S.C. La Recastello | B25: 80 | C25: 100 | D25: 100 | E25: 80 | F25: 80 | G25: 80 | H25: 80 | I25: 100 | J25: 100 | K25: 100 | L25: 100 | M25: 80 | N25: 80 | O25: 80 | P25: 80 | Q25: 100 | R25: 100 | S25: =SUM(B25:R25) -> 1520 | T25: 1
A26: S.C. Cernobbio | B26: 100 | C26: 60 | D26: 80 | E26: 100 | F26: 100 | G26: 100 | H26: 100 | I26: 60 | J26: 60 | K26: 80 | L26: 80 | M26: 60 | N26: 100 | O26: 100 | P26: 100 | Q26: 80 | R26: 80 | S26: =SUM(B26:R26) -> 1440 | T26: 2
A27: S.C. Ski Mountain | B27: 60 | C27: 80 | D27: 60 | E27: 60 | F27: 60 | G27: 60 | H27: 60 | I27: 80 | J27: 80 | K27: 60 | L27: 60 | M27: 100 | N27: 60 | O27: 60 | P27: 60 | Q27: 60 | R27: 60 | S27: =SUM(B27:R27) -> 1120 | T27: 3
C30: CLASSIFICA SOCIETA' ASSOLUTA MASCHILE 2023
A32: Classifica Assoluta
A33: Maschile
B34: TEMU' | C34: BORNO | D34: BORNO | E34: VALGEROLA | F34: VALGEROLA | G34: APRICA | H34: APRICA | I34: LIZZOLA | J34: LIZZOLA | K34: APRICA | L34: APRICA | M34: TEMU' | N34: CHIESA | O34: CHIESA | P34: CHIESA | Q34: TONALE | R34: TONALE | S34: TOT | T34: Posiz.
A35: S.C. Ski Mountain | B35: 100 | C35: 100 | D35: 100 | E35: 100 | F35: 80 | G35: 100 | H35: 100 | I35: 100 | J35: 100 | K35: 100 | L35: 100 | M35: 100 | N35: 80 | O35: 100 | P35: 100 | Q35: 100 | R35: 100 | S35: =SUM(B35:R35) -> 1660 | T35: 1
A36: S.C. Cernobbio | B36: 60 | C36: 80 | D36: 80 | E36: 80 | F36: 100 | G36: 80 | H36: 80 | I36: 60 | J36: 60 | K36: 80 | L36: 80 | M36: 60 | N36: 100 | O36: 80 | P36: 80 | Q36: 80 | R36: 60 | S36: 1300 | T36: 2
A37: S.C. La Recastello | B37: 80 | C37: 60 | D37: 60 | E37: 60 | F37: 60 | G37: 60 | H37: 60 | I37: 80 | J37: 80 | K37: 60 | L37: 60 | M37: 80 | N37: 60 | O37: 60 | P37: 60 | Q37: 60 | R37: 80 | S37: 1120 | T37: 3
A38: S.C. GEM Monza | E38: 50 | F38: 50 | S38: 100 | T38: 4
A39: G.S.A. Marinelli | G39: 50 | H39: 50 | S39: 100 | T39: 4
A41: CLASSIFICA SOCIETA ASSOLUTA MASCHILE/FEMMINILE 2023
A43: Classifica Assoluta
A44: Maschile e Femminile
B45: TEMU' | C45: BORNO | D45: BORNO | E45: VALGEROLA | F45: VALGEROLA | G45: APRICA | H45: APRICA | I45: LIZZOLA | J45: LIZZOLA | K45: APRICA | L45: APRICA | M45: TEMU' | N45: CHIESA | O45: CHIESA | P45: CHIESA | Q45: TONALE | R45: TONALE | S45: TOT | T45: Posiz.
A46: S.C. Ski Mountain | B46: 100 | C46: 100 | D46: 100 | E46: 80 | F46: 80 | G46: 100 | H46: 100 | I46: 100 | J46: 100 | K46: 100 | L46: 100 | M46: 100 | N46: 80 | O46: 100 | P46: 80 | Q46: 100 | R46: 100 | S46: =SUM(B46:R46) -> 1620 | T46: 1
A47: S.C. Cernobbio | B47: 60 | C47: 60 | D47: 60 | E47: 100 | F47: 100 | G47: 80 | H47: 80 | I47: 60 | J47: 60 | K47: 80 | L47: 80 | M47: 60 | N47: 100 | O47: 80 | P47: 100 | Q47: 80 | R47: 60 | S47: 1300 | T47: 2
A48: S.C. La Recastello | B48: 80 | C48: 80 | D48: 80 | E48: 60 | F48: 60 | G48: 60 | H48: 60 | I48: 80 | J48: 80 | K48: 60 | L48: 60 | M48: 80 | N48: 60 | O48: 60 | P48: 60 | Q48: 60 | R48: 80 | S48: 1160 | T48: 3
A49: S.C. GEM Monza | E49: 50 | F49: 50 | S49: 100 | T49: 4
A50: G.S.A. Marinelli | G50: 50 | H50: 50 | S50: 100 | T50: 4
